fUSD/lending_fUSD_20240211
["ID","MTS","AMOUNT","RATE_DAILY","PERIOD"]
[313735734,1707637841187,-3187.01171233,0.00022038,2]
[313735735,1707637841199,-30685.68987765,0.00022038,2]
[313735736,1707637841209,-150.01,0.00022599,2]
[313735737,1707637841220,-3313.68237718,0.00022599,2]
[313735738,1707637841229,-4862.98168351,0.000226,2]
[313735739,1707637841238,-4500.0,0.000226,8]
[313735740,1707637841248,-157.7409778,0.00022612,2]
[313735741,1707637841257,-434.32885671,0.00022658,2]
[313735742,1707637841267,-500.0,0.00022665,2]
[313735743,1707637841276,-200.0,0.00022665,2]
[313735744,1707637841287,-6800.0,0.000227,8]
[313735745,1707637841297,-200.0,0.00022716,2]
[313735746,1707637841307,-800.0,0.00022716,2]
[313735747,1707637841317,-434.32885671,0.00022719,2]
[313735748,1707637841328,-500.0,0.0002274,2]
[313735749,1707637841339,-1823.41736352,0.0002275,2]
[313735750,1707637841348,-4292.3476156,0.00022768,2]
[313735751,1707637841357,-19085.77689534,0.00022768,2]
[313735752,1707637841366,-434.32885671,0.00022779,2]
[313735753,1707637841376,-177.2,0.00022781,2]
[313735754,1707637841385,-155.28857787,0.000228,2]
[313735755,1707637841395,-5385.16,0.000228,2]
[313735756,1707637841406,-9000.0,0.000228,8]
[313735757,1707637841415,-500.0,0.00022815,2]
[313735758,1707637841425,-200.0,0.00022815,2]
[313735759,1707637841436,-434.32885671,0.0002284,2]
[313735760,1707637841445,-33153.61250829,0.0002285,2]
[313735761,1707637841454,-595.66494669,0.00022869,2]
[313735762,1707637841463,-180.19324452,0.00022876,2]
[313735763,1707637841473,-404.6,0.00022877,2]
[313735764,1707637841483,-595.66494667,0.00022877,2]
[313735765,1707637841492,-177.77473452,0.00022886,2]
[313735766,1707637841502,-3340.7595,0.000229,2]
[313735767,1707637841513,-7042.37328428,0.000229,2]
[313735768,1707637841522,-197.95026175,0.000229,2]
[313735769,1707637841531,-163.41940674,0.000229,2]
[313735770,1707637841540,-5000.0,0.000229,2]
[313735771,1707637841549,-434.32885671,0.000229,2]
[313735772,1707637841560,-157.7409778,0.000229,2]
[313735773,1707637841570,-1274.91436073,0.000229,2]
[313735774,1707637841581,-1105.39102407,0.000229,2]
[313735775,1707637841590,-298.34757623,0.000229,2]
[313735776,1707637841599,-921.58568398,0.000229,2]
[313735777,1707637841609,-175.35125599,0.000229,2]
[313735778,1707637841618,-3666.88157617,0.000229,2]
[313735779,1707637841627,-249.78717055,0.000229,4]
[313735780,1707637841639,-11300.0,0.000229,8]
[313735781,1707637841649,-34556.61367377,0.00022939,2]
[313735782,1707637841665,-434.93838826,0.00022939,2]
[313735800,1707637844655,-268.8234028,0.00022885,2]
[313735815,1707637846933,-150.0,0.00022,2]
[313735816,1707637846943,-150.01,0.00022599,2]
[313735817,1707637846952,-3313.68237718,0.00022599,2]
[313735818,1707637846962,-326.84154387,0.00022885,2]
[313735819,1707637846971,-165.77561307,0.000229,2]
[313735820,1707637846981,-55214.46174117,0.00022939,2]
[313735821,1707637846991,-812.70064038,0.00022969,2]
[313735825,1707637863304,177.2,0.00021984,2]
[313735826,1707637886028,1533.27801125,0.00018,2]
[313735827,1707637892095,750.64317139,0.0001,2]
[313735828,1707637894905,1330.55939881,0.0002,2]
[313735829,1707637911914,289.8,0.0002196,2]
[313735830,1707637912857,1687.66188023,0.00021,4]
[313735831,1707637914383,2566.41,0.0002196,2]
[313735832,1707637964545,23900.0,0.00021958,2]
[313735833,1707637979657,494.88,0.00021971,2]
[313735834,1707637989702,150.0,0.00021821,2]
[313735835,1707638004346,4501.8995,0.00021938,2]
[313735836,1707638016256,100000.0,0.00021938,2]
[313735837,1707638044302,203.0,0.00021315,2]
[313735838,1707638059469,2820.18167704,0.00021938,2]
[313735839,1707638093718,2457.3616,0.00021936,2]
[313735840,1707638093757,1144.23,0.00021756,2]
[313735841,1707638099421,2000.0,0.00021756,2]
[313735842,1707638166328,531.69250034,0.0002199,2]
[313735843,1707638166696,793.73,0.00021755,2]
[313735844,1707638191302,100000.0,0.00021938,2]
[313735845,1707638204685,409.92,0.00021751,2]
[313735846,1707638233728,1032.69,0.00019839,2]
[313735847,1707638254541,541.4513,0.00021938,2]
[313735848,1707638322603,166.21,0.00021726,2]
[313735849,1707638338253,44786.3243,0.00021938,2]
[313735850,1707638353924,153.18,0.00021877,2]
[313735851,1707638410404,159.0185324,0.00021936,2]
[313735852,1707638420401,2274.13,0.00021632,2]
[313735853,1707638431512,23900.0,0.00021632,2]
[313735854,1707638438205,250.0,0.00021642,2]
[313735855,1707638494099,177.2,0.00021037,2]
[313735856,1707638494914,177.2,0.00021585,2]
[313735857,1707638500087,500.0,0.000219,2]
[313735858,1707638502023,2467.65896741,0.00021938,2]
[313735859,1707638506645,214.35,0.00021613,2]
[313735861,1707638606211,150.0,0.000216,2]
[313735862,1707638637191,2000.0,0.00021616,2]
[313735864,1707638693987,2159.20159651,0.00021938,2]
[313735865,1707638754590,992.16,0.00019706,2]
[313735866,1707638754774,992.16,0.0002197,2]
[313735867,1707638764148,203.0,0.00020997,2]
[313735868,1707638787662,476.4293,0.000219,2]
[313735869,1707638790003,672.06,0.00021621,2]
[313735870,1707638807747,161.53,0.00021619,2]
[313735871,1707638811882,252.4411,0.000219,2]
[313735872,1707638884323,200.0,0.00020997,2]
[313735873,1707638884706,266.16592462,0.00016498,2]
[313735874,1707638886823,2142.37357073,0.00021938,2]
[313735875,1707638893471,9137.77218277,0.00020896,7]
[313735876,1707638894827,205.96184684,0.000219,2]
[313735877,1707638895763,356.86950069,0.000219,2]
[313735878,1707638905404,2053.2,0.00021675,2]
[313735879,1707638930807,153.6,0.0002183,2]
[313735880,1707638934163,973.07605628,0.00021829,2]
[313735894,1707638969610,375.7357949,0.0002199,2]
[313735895,1707638983262,231.84,0.00021657,2]
[313735896,1707638984729,414.20344399,0.0002199,2]
[313735903,1707639006162,1572.2218,0.000219,2]
[313735917,1707639031496,-375.7357949,0.00021995,2]
[313735919,1707639031506,-12.44016262,0.00021995,2]
[313735920,1707639031520,-435.79844913,0.00021995,2]
[313735921,1707639031552,-99.83594865,0.00021995,2]
[313735922,1707639031562,-2819.83576095,0.00021996,2]
[313735923,1707639031572,-150.0,0.00021996,2]
[313735924,1707639031582,-155.0,0.00021997,2]
[313735925,1707639031591,-3613.65070485,0.00021997,2]
[313735926,1707639031604,-663.93622624,0.00021997,2]
[313735927,1707639031826,-265.54115277,0.00021997,2]
[313735928,1707639031836,-445.46280109,0.00021997,2]
[313735935,1707639037526,-731.50666818,0.00021997,2]
[313735936,1707639037537,-741.27723955,0.00021997,2]
[313735937,1707639037549,-420.8888349,0.00021997,2]
[313735938,1707639037560,-313.89851893,0.00021997,2]
[313735940,1707639037585,-14685.56526602,0.00021997,2]
[313735941,1707639037642,-577.24837893,0.00021997,2]
[313735942,1707639037812,-2455.7,0.00021997,2]
[313735943,1707639037823,-709.85997169,0.00021997,2]
[313735944,1707639038037,-1212.04404912,0.00021997,2]
[313735945,1707639038095,-445.94319877,0.00021997,2]
[313735947,1707639039906,364.1862,0.00021898,2]
[313735948,1707639040694,-510.13070881,0.00021997,2]
[313735949,1707639040705,-272.65594049,0.00021997,2]
[313735950,1707639040739,214.35,0.00021679,2]
[313735951,1707639040766,-7625.90966314,0.00021997,2]
[313735952,1707639040778,-2799.18,0.00021997,2]
[313735953,1707639040810,-4980.08753053,0.00021997,2]
[313735954,1707639040863,-1119.993,0.00021997,2]
[313735955,1707639040971,-9555.6525184,0.00021997,2]
[313735956,1707639040982,-306.5613438,0.00021997,2]
[313735982,1707639042567,-301.60400004,0.00021997,2]
[313735997,1707639042678,-606.39198877,0.00021997,2]
[313736005,1707639042737,-2421.66549175,0.00021997,2]
[313736007,1707639042749,-1362.21273828,0.00021997,2]
[313736009,1707639042759,-2172.13627864,0.00021998,2]
[313736011,1707639042768,-1547.90202558,0.00021998,2]
[313736013,1707639042780,-275.74603316,0.00021998,2]
[313736015,1707639042791,-3012.95195018,0.00021998,2]
[313736017,1707639042803,-592.07027428,0.00021998,2]
[313736018,1707639042814,-1503.93433306,0.00021998,2]
[313736019,1707639042825,-10050.2900985,0.00021998,2]
[313736020,1707639042860,-905.05172536,0.00021998,2]
[313736021,1707639042871,-92805.61146521,0.00021998,2]
[313736022,1707639042880,-150.0,0.00022,2]
[313736023,1707639042889,-200000.0,0.00022,2]
[313736024,1707639042898,-2206.57701654,0.00022,2]
[313736025,1707639042908,-153.6,0.0002202,2]
[313736026,1707639042917,-221.90451194,0.00022028,2]
[313736027,1707639042926,-182.01665347,0.00022035,2]
[313736028,1707639042936,-4290.19,0.00022035,2]
[313736029,1707639042945,-151.0211,0.00022036,3]
[313736030,1707639042954,-151.0211,0.00022036,3]
[313736031,1707639042963,-151.0211,0.00022036,3]
[313736033,1707639042973,-151.0211,0.00022036,3]
[313736035,1707639042982,-151.0211,0.00022036,3]
[313736036,1707639042991,-151.0211,0.00022036,3]
[313736038,1707639043000,-151.0211,0.00022036,3]
[313736040,1707639043009,-151.0211,0.00022036,3]
[313736042,1707639043019,-151.0211,0.00022036,3]
[313736044,1707639043028,-151.0211,0.00022036,3]
[313736046,1707639043037,-245000.0,0.00022038,2]
[313736049,1707639043046,-50005.25,0.00022038,2]
[313736051,1707639043055,-690.15,0.00022105,2]
[313736053,1707639043064,-349.93,0.00022133,2]
[313736054,1707639043073,-2312.37,0.00022133,2]
[313736055,1707639043083,-159.01853239,0.00022173,2]
[313736056,1707639043092,-153.6,0.00022209,2]
[313736057,1707639043100,-500.0,0.00022263,2]
[313736058,1707639043110,-200.0,0.00022342,2]
[313736059,1707639043119,-153.6,0.00022399,2]
[313736060,1707639043128,-159.01853239,0.0002241,2]
[313736061,1707639043138,-714.83,0.00022417,2]
[313736062,1707639043146,-499.99,0.00022417,2]
[313736063,1707639043156,-200.0,0.00022436,2]
[313736064,1707639043165,-800.0,0.00022436,2]
[313736065,1707639043174,-500.0,0.00022448,2]
[313736066,1707639043183,-500.0,0.00022454,2]
[313736067,1707639043192,-432.0,0.00022466,2]
[313736068,1707639043201,-418.1,0.00022466,2]
[313736069,1707639043211,-418.1,0.00022466,2]
[313736070,1707639043220,-418.26,0.00022466,2]
[313736071,1707639043229,-418.1,0.00022466,2]
[313736072,1707639043238,-418.1,0.00022466,2]
[313736073,1707639043247,-418.1,0.00022466,2]
[313736074,1707639043256,-1000.0,0.000225,2]
[313736075,1707639043266,-600.0,0.000225,8]
[313736076,1707639043275,-153.6,0.00022588,2]
[313736077,1707639043285,-1200.0,0.000226,8]
[313736078,1707639043294,-800.0,0.0002263,2]
[313736079,1707639043303,-500.0,0.00022645,2]
[313736080,1707639043312,-159.01853239,0.00022646,2]
[313736081,1707639043322,-1500.0,0.00022659,2]
[313736082,1707639043332,-26358.0,0.00022671,2]
[313736083,1707639043341,-1800.0,0.000227,8]
[313736084,1707639043350,-150.0,0.00022713,2]
[313736085,1707639043360,-150.0,0.00022719,2]
[313736086,1707639043369,-500.0,0.0002273,2]
[313736087,1707639043379,-231.84,0.0002274,2]
[313736088,1707639043388,-150.0,0.0002274,2]
[313736089,1707639043397,-150.0,0.00022747,2]
[313736090,1707639043407,-306.14828674,0.00022747,2]
[313736091,1707639043416,-150.0,0.00022749,2]
[313736092,1707639043426,-203.0,0.0002277,4]
[313736093,1707639043440,-153.6,0.00022778,2]
[313736094,1707639043450,-150.0,0.00022786,2]
[313736095,1707639043460,-194.36966903,0.00022786,2]
[313736096,1707639043469,-6662.82522139,0.000228,2]
[313736097,1707639043478,-5000.0,0.000228,2]
[313736098,1707639043487,-836.59,0.000228,2]
[313736099,1707639043496,-1234.1,0.000228,2]
[313736100,1707639043506,-9117.94,0.000228,2]
[313736101,1707639043515,-849.94290716,0.000228,2]
[313736102,1707639043525,-532.36,0.000228,2]
[313736103,1707639043534,-736.92734938,0.000228,2]
[313736104,1707639043542,-4377.32087587,0.000228,2]
[313736105,1707639043552,-198.89838414,0.000228,2]
[313736106,1707639043561,-2400.0,0.000228,8]
[313736107,1707639043570,-5818.15217382,0.00022815,3]
[313736108,1707639043579,-500.0,0.00022815,2]
[313736109,1707639043588,-150.0,0.00022815,2]
[313736110,1707639043597,-500.0,0.00022816,2]
[313736111,1707639043606,-150.0,0.00022817,2]
[313736112,1707639043616,-150.0,0.0002282,2]
[313736113,1707639043626,-300.0,0.00022822,2]
[313736114,1707639043634,-1310.26003759,0.00022827,2]
[313736115,1707639043643,-150.0,0.00022847,2]
[313736116,1707639043653,-150.0,0.00022849,2]
[313736117,1707639043662,-155.0,0.00022867,2]
[313736118,1707639043670,-150.0,0.00022878,2]
[313736119,1707639043679,-150.0,0.00022879,2]
[313736120,1707639043688,-159.01853239,0.00022883,2]
[313736121,1707639043698,-150.0,0.00022886,2]
[313736122,1707639043707,-150.0,0.00022889,2]
[313736123,1707639043715,-221.90451194,0.0002289,2]
[313736124,1707639043724,-500.0,0.00022898,2]
[313736125,1707639043733,-500.0,0.00022898,2]
[313736126,1707639043742,-393220.25932247,0.00022899,2]
[313736127,1707639043752,-1000000.0,0.000229,2]
[313736128,1707639043761,-1500.0,0.000229,2]
[313736129,1707639043770,-3000.0,0.000229,8]
[313736130,1707639043779,-150.0,0.00022906,2]
[313736131,1707639043788,-150.0,0.00022906,2]
[313736132,1707639043797,-150.0,0.00022929,2]
[313736133,1707639043806,-150.0,0.00022946,2]
[313736134,1707639043815,-150.0,0.00022947,2]
[313736135,1707639043824,-150.0,0.00022947,2]
[313736136,1707639043833,-150.0,0.00022956,2]
[313736137,1707639043843,-169.60011387,0.0002296,3]
[313736138,1707639043852,-150.0,0.0002296,2]
[313736139,1707639043861,-150.0,0.00022963,2]
[313736140,1707639043870,-49270.8799999,0.00022963,2]
[313736141,1707639043879,-2493.307903,0.00022963,2]
[313736142,1707639043888,-13727.9608972,0.00022963,2]
[313736143,1707639043897,-2496.0247952,0.00022965,2]
[313736144,1707639043906,-153.6,0.00022968,2]
[313736145,1707639043915,-150.01,0.00022968,2]
[313736146,1707639043924,-3313.68237718,0.00022968,2]
[313736147,1707639043933,-150.0,0.00022971,2]
[313736148,1707639043942,-150.0,0.00022979,2]
[313736149,1707639043952,-3264.30005312,0.00022981,2]
[313736150,1707639043961,-155.18172773,0.00022983,2]
[313736151,1707639043970,-2570.4817567,0.00022984,2]
[313736152,1707639043978,-2644.9387181,0.00022984,2]
[313736153,1707639043987,-50582.528,0.00022984,2]
[313736154,1707639043996,-51894.1759999,0.00022984,2]
[313736155,1707639044005,-38609.0,0.00022986,2]
[313736156,1707639044014,-3661.0,0.00022986,2]
[313736157,1707639044023,-2902.0,0.00022986,2]
[313736158,1707639044033,-221.90451194,0.0002299,2]
[313736159,1707639044042,-263.24847302,0.00022995,2]
[313736160,1707639044051,-297.04448897,0.00022995,2]
[313736161,1707639044059,-164.39225,0.00022996,2]
[313736162,1707639044069,-500.0,0.00022996,2]
[313736163,1707639044284,-2779.17399432,0.00022997,2]
[313736164,1707639044294,-1536.64633974,0.00022997,2]
[313736165,1707639044303,-345.09482999,0.00022998,2]
[313736166,1707639044312,-151.0211,0.00022998,2]
[313736167,1707639044322,-151.0211,0.00022998,2]
[313736168,1707639044331,-151.0211,0.00022998,2]
[313736169,1707639044341,-151.0211,0.00022998,3]
[313736170,1707639044350,-151.0211,0.00022998,3]
[313736171,1707639044359,-151.0211,0.00022998,3]
[313736172,1707639044369,-151.0211,0.00022998,3]
[313736173,1707639044378,-151.0211,0.00022998,3]
[313736174,1707639044387,-151.0211,0.00022998,3]
[313736175,1707639044396,-151.0211,0.00022998,3]
[313736176,1707639044405,-151.0211,0.00022998,3]
[313736177,1707639044414,-150.0,0.00022999,2]
[313736178,1707639044423,-150.0,0.00022999,2]
[313736179,1707639044432,-33683.3707766,0.00023,2]
[313736180,1707639044450,-12261.22245898,0.00023,2]
[313736181,1707639044461,-2953.39540874,0.00023,2]
[313736182,1707639044472,-1495.66524383,0.00023,2]
[313736183,1707639044484,-2105.55,0.00023,2]
[313736184,1707639044495,-359.05198259,0.00023,2]
[313736205,1707639046391,-375.7357949,0.00021996,2]
[313736206,1707639046400,-48782.30205777,0.00023,2]
[313736207,1707639065984,656.85052645,0.0002199,2]
[313736208,1707639077404,7720.69510262,0.0002188,2]
[313736209,1707639094677,1412.1497,0.000219,2]
[313736210,1707639128624,154.29,0.0002178,2]
[313736211,1707639128646,199.72,0.0002178,2]
[313736212,1707639133698,245000.0,0.000219,2]
[313736220,1707639276187,386.55237988,0.0002199,2]
[313736223,1707639296934,155.0,0.0002199,2]
[313736224,1707639305650,375.7357949,0.0002199,2]
[313736225,1707639351643,1000.0,0.0002,2]
[313736227,1707639369935,1842.74,0.000218,2]
[313736228,1707639375776,517.78567072,0.0002,2]
[313736229,1707639392895,933.51,0.00019864,2]
[313736231,1707639486273,1000.0,0.00021738,2]
[313736232,1707639528380,386.55237988,0.0002199,2]
[313736233,1707639532368,156.22197088,0.0002199,2]
[313736234,1707639534504,531.69250034,0.0002199,2]
[313736235,1707639541915,156.8,0.0002195,2]
[313736236,1707639546910,23900.0,0.00021767,2]
[313736237,1707639562133,250.0,0.00021758,2]
[313736238,1707639612944,2000.0,0.00021739,2]
[313736239,1707639754069,154.52149132,0.00021599,2]
[313736241,1707639765853,234.34768806,0.00021599,2]
[313736300,1707639834042,1535.61,0.00021805,2]
[313736301,1707639843919,203.0,0.00021542,2]
[313736303,1707639881272,386.55237988,0.0002199,2]
[313736304,1707639890158,166.21,0.00021814,2]
[313736308,1707639990223,173.88,0.00021839,2]
[313736309,1707640006172,6645.6,0.00025,30]
[313736311,1707640020452,23900.0,0.00021835,2]
[313736312,1707640050154,898.21,0.00020036,2]
[313736313,1707640065029,200.0,0.00021981,2]
[313736338,1707640207298,-1000.0,0.00039689,60]
[313736339,1707640207321,-162.75698721,0.00039689,120]
[313736340,1707640207344,-200.0,0.00039689,120]
[313736341,1707640207367,-200.0,0.00039689,120]
[313736342,1707640207389,-200.0,0.00039689,120]
[313736343,1707640207412,-200.0,0.00039689,120]
[313736344,1707640207435,-200.0,0.00039689,120]
[313736345,1707640207459,-5000.0,0.00039689,120]
[313736346,1707640207482,-1000.0,0.00039689,60]
[313736347,1707640207505,-1000.0,0.00039689,120]
[313736348,1707640207528,-1000.0,0.00039689,120]
[313736349,1707640207553,-236.06611236,0.00039689,120]
[313736350,1707640207577,-500.0,0.00039689,120]
[313736351,1707640207599,-297.33908372,0.00039689,120]
[313736352,1707640207621,-1238.41238843,0.00039689,90]
[313736353,1707640207643,-643.95761473,0.00039689,120]
[313736354,1707640207666,-517.58606623,0.00039689,120]
[313736355,1707640207690,-1199.42421808,0.00039689,60]
[313736356,1707640207714,-189.81453798,0.00039689,60]
[313736357,1707640207738,-795.54595265,0.00039689,60]
[313736358,1707640207761,-215.99552014,0.00039689,120]
[313736359,1707640207786,-212.00080449,0.00039689,120]
[313736360,1707640207809,-251.83320879,0.00039689,120]
[313736361,1707640207835,-152.8382174,0.00039689,120]
[313736362,1707640207858,-170.57098906,0.00039689,120]
[313736363,1707640207881,-1104.69355474,0.00039689,120]
[313736364,1707640207904,-230.87077813,0.00039689,120]
[313736365,1707640207928,-175.07491124,0.00039689,120]
[313736366,1707640207950,-1052.91462015,0.00039689,35]
[313736367,1707640207973,-898.83117621,0.00039689,120]
[313736368,1707640207997,-381.02398652,0.00039689,120]
[313736369,1707640208021,-159.89596229,0.00039689,60]
[313736370,1707640208046,-457.9711229,0.00039689,120]
[313736371,1707640208070,-253.82658119,0.00039689,120]
[313736372,1707640208095,-583.99106418,0.00039689,120]
[313736373,1707640208118,-3017.72911978,0.00039689,120]
[313736374,1707640208147,-195.2334622,0.00039689,60]
[313736375,1707640208171,-168.92978721,0.00039689,120]
[313736376,1707640208195,-1549.19504781,0.00039689,120]
[313736377,1707640208221,-198.44789298,0.00039689,120]
[313736378,1707640208246,-1988.28722389,0.00039689,120]
[313736379,1707640208270,-152.02798536,0.00039689,120]
[313736380,1707640208294,-300.0,0.00039689,40]
[313736381,1707640208318,-300.0,0.00039689,41]
[313736382,1707640208342,-20000.0,0.00039689,60]
[313736383,1707640208367,-20000.0,0.00039689,120]
[313736384,1707640208390,-20000.0,0.00039689,90]
[313736385,1707640208414,-20000.0,0.00039689,45]
[313736386,1707640208441,-20000.0,0.00039689,120]
[313736387,1707640208471,-20000.0,0.00039689,120]
[313736388,1707640208495,-20000.0,0.00039689,120]
[313736389,1707640208519,-40198.34941203,0.00039689,120]
[313736390,1707640208544,-186.65013178,0.00039689,120]
[313736391,1707640208568,-243.58067293,0.00039689,120]
[313736392,1707640208593,-300.0,0.00039689,39]
[313736393,1707640208618,-478.0,0.00039689,120]
[313736394,1707640208642,-747.93706548,0.00039689,120]
[313736395,1707640208666,-5311.73799655,0.00039689,120]
[313736396,1707640208691,-190.18658767,0.00039689,90]
[313736397,1707640208714,-4005.3933139,0.00039689,120]
[313736398,1707640208739,-169.00772569,0.00039689,120]
[313736399,1707640208766,-716.79697127,0.00039689,120]
[313736400,1707640208805,-567.89978614,0.00039689,120]
[313736401,1707640208848,-1000.0,0.00039689,60]
[313736402,1707640208885,-1000.0,0.00039689,120]
[313736403,1707640208910,-617.60471647,0.00039689,120]
[313736404,1707640208932,-371.86797817,0.00039689,120]
[313736405,1707640208956,-1030.02243965,0.00039689,120]
[313736406,1707640208979,-1058859.572707,0.00039689,120]
[313736407,1707640209009,-8194.6989128,0.00039689,120]
[313736408,1707640209032,-328.46997061,0.00039689,60]
[313736409,1707640209056,-251.2638762,0.00039689,120]
[313736410,1707640209089,-10836.19932628,0.00039689,120]
[313736411,1707640209113,-11599.16148186,0.00039689,120]
[313736414,1707640209137,-331.275398,0.00039689,63]
[313736415,1707640209161,-6010.3875,0.00039689,34]
[313736418,1707640209185,-8013.85,0.00039689,36]
[313736419,1707640209208,-10017.3125,0.00039689,38]
[313736420,1707640209231,-12020.775,0.00039689,40]
[313736421,1707640209254,-14024.2375,0.00039689,42]
[313736422,1707640209277,-16027.7,0.00039689,44]
[313736423,1707640209553,-18031.1625,0.00039689,46]
[313736424,1707640209576,-20034.625,0.00039689,48]
[313736425,1707640209599,-22038.0875,0.00039689,50]
[313736426,1707640209623,-24041.55,0.00039689,52]
[313736427,1707640209645,-26045.0125,0.00039689,54]
[313736428,1707640209668,-10017.38630321,0.00039689,56]
[313736429,1707640215319,16000.0,0.00039689,120]
[313736466,1707640231716,-375.7357949,0.00021999,2]
[313736467,1707640231726,-200.0,0.00022,2]
[313736468,1707640231736,-504.85247061,0.00022,2]
[313736469,1707640231745,-149.75527866,0.00022,2]
[313736470,1707640231790,-366.80492926,0.00022,2]
[313736471,1707640231799,-626.99161372,0.00022017,2]
[313736472,1707640231813,-1373.00838628,0.00022017,2]
[313736473,1707640231822,-156.51529877,0.0002205,2]
[313736474,1707640231832,-156.8,0.0002215,2]
[313736475,1707640231841,-156.51529877,0.00022192,2]
[313736476,1707640231851,-898.21,0.000223,2]
[313736477,1707640231864,-156.51529877,0.00022333,2]
[313736478,1707640231874,-203.0,0.00022374,2]
[313736479,1707640231883,-156.51529877,0.00022475,2]
[313736480,1707640231893,-1751.99,0.00022475,2]
[313736481,1707640231901,-717.22,0.00022515,2]
[313736482,1707640231911,-688.36,0.00022577,2]
[313736483,1707640231920,-261.71500102,0.00022597,2]
[313736484,1707640231929,-186.13576487,0.000226,2]
[313736485,1707640231976,-92.72423513,0.000226,2]
[313736486,1707640231985,-156.51529877,0.00022617,2]
[313736487,1707640231995,-200.0,0.00022621,2]
[313736488,1707640232004,-740.22724221,0.00022621,2]
[313736489,1707640232015,-59.77275779,0.00022621,2]
[313736490,1707640232024,-167.0,0.00022651,2]
[313736491,1707640232033,-499.99,0.00022651,2]
[313736492,1707640232042,-308.42,0.00022651,2]
[313736493,1707640232052,-89.35545999,0.00022699,2]
[313736494,1707640232072,-320.00721961,0.00022699,2]
[313736495,1707640232081,-342.18224002,0.00022699,2]
[313736512,1707640234733,169.00772569,0.00039689,120]
[313736517,1707640238581,-609.47680672,0.00022699,2]
[313736520,1707640238598,-4282.31746697,0.00022699,2]
[313736523,1707640238662,-613.71908962,0.00022699,2]
[313736532,1707640238732,-20717.08133818,0.00022699,2]
[313736542,1707640238820,-6697.8236926,0.00022699,2]
[313736544,1707640238832,-7928.93018408,0.00022699,2]
[313736547,1707640238847,-13409.909033,0.00022699,2]
[313736549,1707640238857,-727.06,0.000227,2]
[313736551,1707640238866,-27996.3396,0.000227,2]
[313736553,1707640238875,-156.51529877,0.00022758,2]
[313736555,1707640238884,-302.84547986,0.00022798,2]
[313736557,1707640238893,-520.48347098,0.00022799,2]
[313736559,1707640238901,-720.11,0.000228,2]
[313736561,1707640238910,-19055.86845377,0.000228,2]
[313736564,1707640238929,-423.356324,0.000228,2]
[313736566,1707640238940,-11214.9223289,0.000228,2]
[313736713,1707640240370,-3344.56828764,0.000228,2]
[313736717,1707640240400,-544.13000421,0.000228,2]
[313736719,1707640240411,-7883.88694119,0.000228,2]
[313736725,1707640240458,-2925.98626232,0.000228,2]
[313736781,1707640241175,-865.44923091,0.000228,2]
[313736782,1707640241186,-428.1062567,0.000228,2]
[313736792,1707640241272,-908.89033755,0.000228,2]
[313736794,1707640241283,-601.19317598,0.000228,2]
[313736868,1707640242821,-13468.81371338,0.000228,2]
[313736869,1707640244174,-1206.29622726,0.000228,2]
[313736871,1707640245795,-258.90026698,0.000228,2]
[313736872,1707640245807,-1274.31113384,0.000228,2]
[313736891,1707640536804,203.0,0.00021374,2]
[313736895,1707640571152,819.77,0.0001999,2]
[313736896,1707640578207,155.0,0.00019989,2]
[313736899,1707640596346,375.7357949,0.0002199,2]
[313736900,1707640599085,271.65,0.00021843,2]
[313736901,1707640682381,1000.0,0.0002182,2]
[313736902,1707640686469,2000.0,0.0002182,2]
[313736903,1707640687018,23900.0,0.0002182,2]